bitfinex-derivatives/quotes_BTCF0:USTF0_20251011
["timestamp","ask_amount","ask_price","bid_price","bid_amount"]
[1760149750401,0.03290578,112320.0,112310.0,1.02357165]
[1760149750804,0.04204817,112320.0,112310.0,1.02357165]
[1760149751100,0.47721817,112320.0,112310.0,0.16141]
[1760149751403,1.20604338,112320.0,112310.0,0.52221]
[1760149751604,0.46807578,112320.0,112310.0,0.52221]
[1760149751804,0.46807578,112320.0,112310.0,0.16141]
[1760149752003,0.82887578,112320.0,112310.0,0.14]
[1760149752502,0.82887578,112320.0,112310.0,0.03538033]
[1760149752503,0.93371627,112320.0,112310.0,0.03538033]
[1760149752703,0.03517,112290.0,112280.0,0.79463045]
[1760149752899,0.03517,112290.0,112280.0,0.92463045]
[1760149753104,0.0439033,112290.0,112280.0,0.15141]
[1760149753608,0.4439033,112290.0,112280.0,0.13]
[1760149753805,0.56475523,112290.0,112280.0,0.13]
[1760149754004,0.94147337,112290.0,112280.0,0.13]
[1760149754306,0.03517,112270.0,112260.0,0.38221]
[1760149754504,0.03517,112270.0,112260.0,0.40221]
[1760149754700,0.03517,112270.0,112260.0,0.04141]
[1760149754896,0.43517,112270.0,112260.0,0.02]
[1760149755102,0.57128478,112270.0,112260.0,0.04141]
[1760149755902,0.17128478,112270.0,112260.0,0.1303908]
[1760149756102,0.13611478,112270.0,112260.0,0.04141]
[1760149756303,0.04544156,112280.0,112260.0,0.4911892]
[1760149756601,0.06707156,112280.0,112270.0,0.1103829]
[1760149756802,0.06707156,112280.0,112270.0,0.5911829]
[1760149757807,0.10198783,112290.0,112270.0,0.5911829]
[1760149758002,0.05417486,112290.0,112270.0,0.5911829]
[1760149758403,0.07580486,112290.0,112280.0,0.52279545]
[1760149758609,0.03190156,112300.0,112290.0,0.1103671]
[1760149758907,0.05351934,112310.0,112300.0,0.1103591]
[1760149759111,0.06705934,112310.0,112300.0,0.51221]
[1760149759307,0.06705934,112310.0,112300.0,0.4908]
[1760149759505,0.87567231,112310.0,112300.0,0.13]
[1760149759706,0.96461351,112310.0,112300.0,0.13]
[1760149759904,1.20839045,112310.0,112300.0,0.13]
[1760149760113,0.01354,112290.0,112280.0,0.3608]
[1760149760313,0.03517,112290.0,112280.0,0.4808]
[1760149760813,0.04426148,112290.0,112280.0,0.50221]
[1760149761116,0.04426148,112290.0,112280.0,0.14141]
[1760149761613,0.04426148,112290.0,112280.0,0.12]
[1760149761614,0.8369504,112290.0,112280.0,0.12]
[1760149762008,0.01354,112270.0,112250.0,0.4497851]
[1760149762211,0.01354,112270.0,112250.0,0.5797851]
[1760149762704,0.04542892,112280.0,112260.0,0.4711908]
[1760149762901,0.04542892,112280.0,112260.0,0.15141]
[1760149763107,0.03517,112270.0,112260.0,0.15141]
[1760149763712,0.40622892,112280.0,112260.0,0.2403908]
[1760149763911,0.40622892,112280.0,112270.0,0.4711829]
[1760149763912,0.06705892,112280.0,112270.0,0.4711829]
[1760149764106,0.03517,112280.0,112270.0,0.15141]
[1760149764312,0.06705892,112280.0,112270.0,0.13]
[1760149764511,0.03517,112280.0,112270.0,0.13]
[1760149764908,0.43517,112280.0,112270.0,0.15141]
[1760149765314,0.03517,112280.0,112270.0,0.2403829]
[1760149765523,0.56935886,112290.0,112280.0,0.110375]
[1760149765809,0.17666994,112290.0,112280.0,0.220375]
[1760149766113,0.53746994,112290.0,112280.0,0.13141]
[1760149766308,0.17666994,112290.0,112280.0,0.13141]
[1760149766506,0.93746994,112290.0,112280.0,0.13141]
[1760149766707,0.93746994,112290.0,112280.0,0.11]
[1760149766908,0.57666994,112290.0,112280.0,0.13141]
[1760149767414,0.57666994,112290.0,112280.0,1.40420545]
[1760149767415,0.15224278,112290.0,112280.0,1.40420545]
[1760149768017,0.15224278,112290.0,112280.0,1.00420545]
[1760149768818,0.13240846,112290.0,112280.0,1.00420545]
[1760149769019,0.01354,112310.0,112290.0,0.0889571]
[1760149769313,0.05499781,112310.0,112290.0,0.4808]
[1760149769511,0.03517,112300.0,112290.0,0.50221]
[1760149769710,0.05499781,112300.0,112290.0,0.50221]
[1760149769907,0.04145781,112300.0,112290.0,0.50221]
[1760149770110,0.04174757,112300.0,112290.0,0.50221]
[1760149770514,0.0640514,112300.0,112290.0,0.50221]
[1760149770814,0.02011757,112300.0,112290.0,1.41419755]
[1760149771317,0.02011757,112300.0,112290.0,0.6017771]
[1760149771910,0.02011757,112300.0,112290.0,0.5911671]
[1760149772413,0.02011757,112300.0,112290.0,0.50221]
[1760149772608,0.16170934,112300.0,112290.0,0.50221]
[1760149772818,0.16170934,112300.0,112290.0,0.5911671]
[1760149773018,0.19687934,112300.0,112290.0,0.5911671]
[1760149773412,0.16170934,112300.0,112290.0,1.00358755]
[1760149773814,0.15275435,112300.0,112290.0,1.40358755]
[1760149777014,0.15275435,112300.0,112290.0,1.00358755]
[1760149777413,0.15275435,112300.0,112290.0,1.34190219]
[1760149778920,0.15275435,112300.0,112290.0,0.94290219]
[1760149780013,0.67625345,112300.0,112290.0,0.121]
[1760149780217,0.58730435,112300.0,112290.0,0.121]
[1760149780412,0.58730435,112300.0,112290.0,0.50383]
[1760149780920,0.15275435,112300.0,112290.0,0.5927871]
[1760149783321,0.17441435,112300.0,112290.0,0.5927871]
[1760149783620,0.17441435,112300.0,112290.0,0.50383]
[1760149784013,0.58730435,112300.0,112290.0,0.12]
[1760149784208,0.61919327,112300.0,112290.0,0.12]
[1760149784812,0.69919327,112300.0,112290.0,0.12]
[1760149785020,1.08486642,112300.0,112290.0,0.12]
[1760149785211,1.15586642,112300.0,112290.0,0.12]
[1760149785411,1.08586642,112300.0,112290.0,0.12]
[1760149785615,0.03455,112270.0,112260.0,0.38383]
[1760149785815,0.05466757,112270.0,112260.0,0.5828108]
[1760149786011,0.05466757,112270.0,112260.0,0.13303]
[1760149786217,0.45466757,112270.0,112260.0,0.13303]
[1760149786416,0.48659702,112270.0,112260.0,0.13303]
[1760149786912,0.08659702,112270.0,112260.0,0.2220108]
[1760149787624,0.05204702,112270.0,112260.0,0.2220108]
[1760149787818,0.02011757,112270.0,112260.0,0.9934209]
[1760149788013,0.03192945,112280.0,112260.0,0.970389]
[1760149788322,0.03192945,112280.0,112270.0,0.4728029]
[1760149788524,0.03192945,112280.0,112270.0,0.5828029]
[1760149789819,0.06645945,112280.0,112270.0,0.5828029]
[1760149790016,0.86334174,112280.0,112270.0,0.11]
[1760149790221,0.50254174,112280.0,112270.0,0.11]
[1760149790616,0.10254174,112280.0,112270.0,0.2209429]
[1760149790917,0.07333547,112280.0,112270.0,0.49277]
[1760149791110,0.08620547,112280.0,112270.0,0.5817429]
[1760149791319,0.05204547,112280.0,112270.0,0.5923529]
[1760149791511,0.05204547,112280.0,112270.0,0.5817429]
[1760149791721,0.0319279,112280.0,112270.0,0.5817429]
[1760149791922,0.05204547,112280.0,112270.0,0.5817429]
[1760149792123,0.0319279,112280.0,112270.0,0.5817429]
[1760149792315,0.05204547,112280.0,112270.0,0.5817429]
[1760149792511,0.07333547,112280.0,112270.0,0.5817429]
[1760149792821,0.08620547,112280.0,112270.0,0.5817429]
[1760149793026,0.84700547,112280.0,112270.0,0.11]
[1760149793214,0.81507757,112280.0,112270.0,0.11]
[1760149793423,0.48620716,112280.0,112270.0,0.11]
[1760149793619,0.86297174,112280.0,112270.0,0.11]
[1760149793818,0.50217174,112280.0,112270.0,0.13197]
[1760149794124,0.86297174,112280.0,112270.0,0.11]
[1760149794317,0.95297174,112280.0,112270.0,0.11]
[1760149794517,0.86297174,112280.0,112270.0,0.11]
[1760149794717,0.06801174,112280.0,112270.0,0.5817429]
[1760149794918,0.05204478,112280.0,112270.0,0.5923529]
[1760149795217,0.03192721,112280.0,112270.0,0.5817429]
[1760149795414,0.05204478,112280.0,112270.0,0.5817429]
[1760149795622,0.02011757,112280.0,112270.0,0.5817429]
[1760149796020,0.06493478,112290.0,112270.0,0.5817429]
[1760149796923,0.03416,112280.0,112270.0,0.5817429]
[1760149797123,0.05427757,112280.0,112270.0,0.5817429]
[1760149797725,0.02011757,112280.0,112270.0,0.5817429]
[1760149798021,0.06493478,112290.0,112270.0,0.5817429]
[1760149799824,0.08622478,112290.0,112280.0,0.110935]
[1760149800029,0.05204478,112290.0,112280.0,0.220935]
[1760149800328,0.03192721,112290.0,112280.0,0.220935]
[1760149800528,0.08620478,112290.0,112280.0,0.220935]
[1760149800721,0.06491478,112290.0,112280.0,0.220935]
[1760149800927,0.02011757,112290.0,112280.0,0.993395]
[1760149801124,0.03416,112290.0,112280.0,0.581735]
[1760149801430,0.02011757,112290.0,112280.0,0.581735]
[1760149801630,0.16562435,112300.0,112280.0,0.581735]
[1760149801931,0.03416,112290.0,112280.0,0.49277]
[1760149802124,0.05427757,112290.0,112280.0,0.11]
[1760149803128,0.05427757,112290.0,112260.0,0.02197]
[1760149803129,0.03416,112270.0,112260.0,0.02197]
[1760149803328,0.05427757,112270.0,112260.0,0.12]
[1760149803530,0.41507757,112270.0,112260.0,0.12]
[1760149803725,0.81507757,112270.0,112260.0,0.12]
[1760149804121,0.05427757,112270.0,112260.0,0.2309509]
[1760149804329,0.02011757,112270.0,112260.0,0.9917509]
[1760149804632,0.06491248,112280.0,112260.0,0.5917509]
[1760149804926,0.03416,112270.0,112260.0,0.50277]
[1760149805228,0.05427757,112270.0,112260.0,0.14197]
[1760149805629,0.05427757,112270.0,112260.0,0.5917509]
[1760149806529,0.05427757,112270.0,112260.0,0.14197]
[1760149806729,0.02011757,112270.0,112260.0,1.0034109]
[1760149806929,0.03192491,112290.0,112280.0,0.121545]
[1760149807229,0.16456169,112300.0,112290.0,0.1109271]
[1760149807434,0.15385282,112300.0,112290.0,0.6017271]
[1760149807626,0.15385282,112300.0,112290.0,1.0017271]
[1760149807827,0.73494172,112320.0,112290.0,1.77526299]
[1760149807828,0.694225,112320.0,112290.0,1.77526299]
[1760149808036,0.20692399,112330.0,112320.0,0.0889333]
[1760149808333,0.01287,112350.0,112330.0,0.0889254]
[1760149808530,0.04479491,112360.0,112350.0,0.0889096]
[1760149808827,0.01287,112360.0,112350.0,0.5897096]
[1760149809030,0.02171628,112370.0,112360.0,0.0889017]
[1760149809224,0.01287,112370.0,112360.0,0.5797017]
[1760149809425,0.04557491,112400.0,112390.0,0.0888779]
[1760149809626,0.08646642,112400.0,112390.0,0.5796779]
[1760149809832,0.01365,112400.0,112390.0,0.4908]
[1760149810231,0.01365,112400.0,112390.0,0.13]
[1760149810232,0.86332,112400.0,112390.0,0.13]
[1760149810425,0.01365,112380.0,112370.0,0.3608]
[1760149810627,0.01365,112380.0,112370.0,0.5008]
[1760149810822,0.41365,112380.0,112370.0,0.5008]
[1760149811334,0.01365,112340.0,112330.0,0.3608]
[1760149811634,0.01365,112340.0,112330.0,0.4908]
[1760149812129,0.01365,112340.0,112330.0,0.13]
[1760149812327,0.77445,112340.0,112330.0,0.13]
[1760149812531,0.8633675,112340.0,112330.0,0.131]
[1760149812835,0.77445,112340.0,112330.0,0.131]
[1760149813027,0.37445,112340.0,112330.0,0.131]
[1760149813326,0.41365,112340.0,112330.0,0.4918]
[1760149813529,0.01365,112340.0,112330.0,0.131]
[1760149814443,0.01365,112340.0,112330.0,0.132]
[1760149814630,0.01365,112340.0,112330.0,0.5817254]
[1760149814935,0.01365,112350.0,112340.0,0.0889175]
[1760149815130,0.01365,112350.0,112340.0,0.5697175]
[1760149817725,0.01365,112370.0,112340.0,0.9697175]
[1760149817932,0.01365,112370.0,112360.0,0.4497017]
[1760149818126,0.01365,112370.0,112360.0,0.9405017]
[1760149818334,0.01365,112380.0,112370.0,0.0888938]
[1760149818531,0.01365,112380.0,112370.0,0.5796938]
[1760149819431,0.41365,112380.0,112370.0,0.13]
[1760149819632,0.77445,112380.0,112370.0,0.13]
[1760149819833,0.88427867,112380.0,112370.0,0.13]
[1760149820532,0.01365,112350.0,112340.0,0.3608]
[1760149820732,0.37445,112350.0,112340.0,0.12]
[1760149820926,0.39539277,112350.0,112340.0,0.12]
[1760149821932,0.48430237,112350.0,112340.0,0.12]
[1760149822128,0.88430237,112350.0,112340.0,0.12]
[1760149822628,0.79539277,112350.0,112340.0,0.12]
[1760149823441,0.88430237,112350.0,112340.0,0.12]
[1760149824239,0.39539277,112350.0,112340.0,0.12]
[1760149824436,0.03459277,112350.0,112340.0,0.2089175]
[1760149824632,0.03459277,112350.0,112340.0,0.9697175]
[1760149824835,0.01365,112350.0,112340.0,0.9697175]
[1760149826841,0.03438757,112350.0,112340.0,0.5697175]
[1760149827043,0.02073757,112350.0,112340.0,0.5697175]
[1760149827540,0.02073757,112350.0,112340.0,0.5707175]
[1760149827739,0.03438757,112350.0,112340.0,0.5707175]
[1760149828242,0.03438757,112350.0,112340.0,0.5717175]
[1760149828742,0.03438757,112350.0,112340.0,0.5707175]
[1760149829248,0.01365,112370.0,112350.0,0.0889032]
[1760149829542,0.03440233,112370.0,112360.0,0.3608]
[1760149829738,0.03440233,112370.0,112360.0,0.4808]
[1760149830139,0.03440233,112370.0,112360.0,0.9697016]
[1760149830630,0.73254014,112370.0,112360.0,0.9697016]
[1760149830837,0.03440233,112370.0,112360.0,0.9697016]
[1760149831237,0.02075233,112370.0,112360.0,1.3305016]
[1760149831542,0.102528,112390.0,112370.0,0.0888895]
[1760149831732,0.1025358,112380.0,112370.0,0.12]
[1760149831938,0.1690026,112380.0,112370.0,0.4808]
[1760149832137,0.03388752,112380.0,112370.0,0.9696937]
[1760149832335,0.02023752,112380.0,112370.0,0.9696937]
[1760149832536,0.09414721,112400.0,112390.0,0.0888779]
[1760149832746,0.1053273,112400.0,112390.0,0.4908]
[1760149832937,0.1941973,112400.0,112390.0,0.13]
[1760149833245,0.9549973,112400.0,112390.0,0.13]
[1760149834345,0.99603982,112400.0,112390.0,0.13]
[1760149834644,0.50716982,112400.0,112390.0,0.13]
[1760149834938,0.99603972,112400.0,112390.0,0.13]
[1760149835240,0.1063273,112400.0,112390.0,0.2188778]
[1760149835435,0.1063273,112400.0,112390.0,0.5796778]
[1760149835630,0.13810967,112400.0,112390.0,0.5796778]
[1760149835835,0.1063273,112400.0,112390.0,0.5796778]
[1760149836032,0.0916773,112400.0,112390.0,0.9796778]
[1760149836242,0.0916773,112400.0,112390.0,0.9796776]
[1760149836936,0.0916773,112400.0,112390.0,0.9806776]
[1760149837738,0.0216773,112400.0,112390.0,0.9806776]
[1760149837941,0.03178237,112430.0,112410.0,0.0888596]
[1760149838237,0.014,112430.0,112420.0,0.80038579]
[1760149838443,0.014,112430.0,112420.0,1.33038579]
[1760149838838,0.014,112440.0,112430.0,0.0888459]
[1760149839034,0.014,112440.0,112430.0,0.4708]
[1760149839035,0.08657021,112440.0,112430.0,0.4708]
[1760149839342,0.87270947,112440.0,112430.0,0.11]
[1760149840042,0.92060364,112440.0,112430.0,0.11]
[1760149840348,0.87270947,112440.0,112430.0,0.11]
[1760149840943,0.47270987,112440.0,112430.0,0.11]
[1760149841547,0.38387147,112440.0,112430.0,0.11]
[1760149841846,0.87270987,112440.0,112430.0,0.11]
[1760149842346,0.47270987,112440.0,112430.0,0.11]
[1760149842544,0.54358877,112440.0,112430.0,0.11]
[1760149843142,0.94358877,112440.0,112430.0,0.0883227]
[1760149843638,0.94358877,112440.0,112430.0,0.0183227]
[1760149843639,0.99148294,112440.0,112430.0,0.0183227]
[1760149843838,0.1028621,112410.0,112400.0,0.01]
[1760149844044,0.4636621,112410.0,112400.0,0.12]
[1760149844242,1.32247093,112410.0,112400.0,0.12]
[1760149844644,0.014,112370.0,112360.0,7.177e-05]
[1760149844943,0.014,112380.0,112360.0,0.48087177]
[1760149845140,0.014,112390.0,112370.0,0.86092741]
[1760149845337,0.014,112390.0,112370.0,1.00092741]
[1760149845646,0.014,112410.0,112380.0,0.457783]
[1760149845840,0.3748,112420.0,112390.0,0.86090891]
[1760149846041,0.3748,112420.0,112400.0,0.0888686]
[1760149846241,0.3748,112420.0,112400.0,0.13]
[1760149846545,0.014,112410.0,112400.0,0.13]
[1760149847645,0.4636621,112410.0,112400.0,0.13]
[1760149847839,0.1028621,112410.0,112400.0,0.13]
[1760149848141,0.014,112420.0,112400.0,1.30203381]
[1760149848441,0.014,112420.0,112400.0,0.90203381]
[1760149848640,0.014,112420.0,112400.0,0.4908]
[1760149848942,0.09395037,112440.0,112410.0,0.86089181]
[1760149849246,0.45475037,112440.0,112410.0,0.89203381]
[1760149849435,0.014,112430.0,112410.0,0.89203381]
[1760149849641,0.014,112430.0,112410.0,0.98089581]
[1760149850241,0.45475037,112440.0,112420.0,0.0888537]
[1760149850444,0.09395037,112440.0,112420.0,0.89203381]
[1760149850949,0.54358917,112440.0,112420.0,0.4808]
[1760149851150,0.45475037,112440.0,112420.0,0.4808]
[1760149851342,0.54359077,112440.0,112420.0,0.12]
[1760149851543,0.45475037,112440.0,112420.0,0.12]
[1760149851743,0.09395037,112440.0,112420.0,0.89203381]
[1760149851938,0.45475037,112440.0,112420.0,0.89203381]
[1760149852143,0.09395037,112440.0,112420.0,0.4808]
[1760149852542,0.54359067,112440.0,112420.0,0.12]
[1760149852743,0.45475037,112440.0,112420.0,0.12]
[1760149853050,0.45475037,112440.0,112420.0,0.4808]
[1760149853245,0.0708789,112440.0,112430.0,0.86088011]
[1760149853548,0.3748,112460.0,112430.0,0.98088011]
[1760149853744,0.014,112460.0,112440.0,0.3608]
[1760149853943,0.3748,112460.0,112440.0,0.4708]
[1760149854148,0.463623,112460.0,112440.0,0.4708]
[1760149854445,0.4628305,112450.0,112440.0,0.11]
[1760149854654,0.374,112450.0,112440.0,0.11]
[1760149854844,0.0132,112450.0,112440.0,0.11]
[1760149855045,0.02191029,112450.0,112440.0,0.11]
[1760149855246,0.00871029,112450.0,112440.0,0.11]
[1760149855549,0.014,112460.0,112440.0,0.9596371]
[1760149855852,0.014,112460.0,112450.0,0.3608]
[1760149856047,0.014,112460.0,112450.0,0.12]
[1760149856847,0.014,112460.0,112450.0,0.4808]
[1760149857050,0.08594617,112460.0,112450.0,0.4808]
[1760149857252,0.08594617,112460.0,112450.0,0.12]
[1760149857454,0.07194617,112460.0,112450.0,0.98086431]
[1760149857647,0.0132,112470.0,112450.0,0.98086431]
[1760149857847,0.1020149,112470.0,112450.0,0.89203381]
[1760149858048,0.4628149,112470.0,112450.0,0.89203381]
[1760149858249,0.4628149,112470.0,112450.0,0.12]
[1760149858550,0.4628226,112460.0,112450.0,0.12]
[1760149859052,0.8628226,112460.0,112450.0,0.12]
[1760149860043,0.5020226,112460.0,112450.0,0.12]
[1760149860249,0.8628226,112460.0,112450.0,0.12]
[1760149860447,0.58146995,112460.0,112450.0,0.12]
[1760149860646,0.72906995,112460.0,112450.0,0.12]
[1760149860844,0.98146995,112460.0,112450.0,0.12]
[1760149861050,0.0888463,112430.0,112410.0,0.41123381]
[1760149861254,0.4496463,112430.0,112410.0,0.56463381]
[1760149861446,0.4496542,112420.0,112410.0,0.1534]
[1760149861653,0.3608,112420.0,112410.0,0.1534]
[1760149861847,0.4496542,112420.0,112410.0,0.1534]
[1760149862053,0.8496542,112420.0,112410.0,0.14]
[1760149862244,0.8552442,112420.0,112410.0,0.14]
[1760149862449,0.8552442,112420.0,112410.0,0.12043194]
[1760149862954,0.87522787,112420.0,112410.0,0.12043194]
[1760149863344,0.92296964,112420.0,112410.0,0.12043194]
[1760149863751,0.91737964,112420.0,112410.0,0.12043194]
[1760149865260,0.38078367,112420.0,112410.0,0.12043194]
[1760149865556,0.01998367,112420.0,112410.0,0.22269404]
[1760149866055,0.3608,112430.0,112420.0,0.0134]
[1760149866254,0.4496463,112430.0,112420.0,0.12]
[1760149867052,0.49740778,112430.0,112420.0,0.12]
[1760149867255,0.0888594,112420.0,112400.0,0.0134]
[1760149867557,0.8104621,112410.0,112400.0,0.12]
[1760149868051,1.25549963,112410.0,112400.0,0.12]
[1760149868353,1.66674407,112410.0,112400.0,0.12]
[1760149868651,1.66673897,112410.0,112400.0,0.12]
[1760149868855,1.71450045,112410.0,112400.0,0.12]
[1760149869050,1.63489591,112410.0,112400.0,0.12]
[1760149869251,1.66673895,112410.0,112400.0,0.12]
[1760149869446,0.03184304,112410.0,112400.0,0.22219]
[1760149869849,0.01978485,112410.0,112400.0,0.22219]
[1760149870158,0.01978485,112410.0,112400.0,0.58299]
[1760149870857,0.01978485,112410.0,112400.0,0.22219]
[1760149871256,0.01978485,112410.0,112400.0,0.58299]
[1760149871456,0.01978485,112410.0,112400.0,0.22219]
[1760149872248,0.01978485,112410.0,112400.0,0.58299]
[1760149872647,0.01978485,112410.0,112400.0,0.98299]
[1760149873055,0.74447092,112410.0,112400.0,0.58299]
[1760149873359,0.01978485,112410.0,112400.0,0.58299]
[1760149873559,0.01978485,112410.0,112400.0,0.22219]
[1760149875058,0.01978485,112410.0,112400.0,0.13332]
[1760149875253,0.38058485,112410.0,112400.0,0.13332]
[1760149875460,0.04254485,112410.0,112400.0,0.15477]
[1760149875660,0.05460304,112410.0,112400.0,0.15477]
[1760149875860,0.07438789,112410.0,112400.0,0.15477]
[1760149876061,0.05460304,112410.0,112400.0,0.15477]
[1760149876558,0.03184304,112410.0,112400.0,0.6044397]
[1760149876757,0.75517867,112410.0,112400.0,0.2436397]
[1760149876959,0.77501616,112410.0,112400.0,0.2436397]
[1760149877150,0.77501616,112410.0,112400.0,1.41567351]
[1760149877455,0.74317312,112410.0,112400.0,1.41567351]
[1760149879062,0.74317312,112410.0,112400.0,1.0044397]
[1760149879359,1.21559392,112410.0,112400.0,0.13332]
[1760149879559,1.62467696,112410.0,112400.0,0.12]
[1760149879856,1.60603392,112410.0,112400.0,0.12]
[1760149880051,1.6537954,112410.0,112400.0,0.12]
[1760149880252,1.1517346,112410.0,112400.0,0.12]
[1760149880859,0.7909346,112410.0,112400.0,0.12]
[1760149881157,0.77501356,112410.0,112400.0,1.39422211]
[1760149881356,0.74317312,112410.0,112400.0,1.39422211]
[1760149881962,0.72333563,112410.0,112400.0,1.39422211]
[1760149882155,0.16712195,112430.0,112420.0,0.01332]
[1760149882365,0.16712195,112430.0,112420.0,0.13332]
[1760149882859,0.56712195,112430.0,112420.0,0.12]
[1760149883763,0.92792195,112430.0,112420.0,0.12]
[1760149884061,0.16712195,112430.0,112420.0,0.99420631]
[1760149884262,0.86353393,112430.0,112420.0,1.39420631]
[1760149884464,0.03184044,112440.0,112430.0,0.1021646]
[1760149884658,0.03184044,112440.0,112430.0,0.2221646]
[1760149884966,0.39264044,112440.0,112430.0,0.13332]
[1760149885464,0.39264044,112440.0,112430.0,0.12]
[1760149885667,0.8496369,112440.0,112430.0,0.12]
[1760149885866,0.7608,112440.0,112430.0,0.12]
[1760149886570,0.98562583,112440.0,112430.0,0.12]
[1760149886867,0.92862937,112440.0,112430.0,0.12]
[1760149887466,1.01746627,112440.0,112430.0,0.12]
[1760149887865,1.01746627,112440.0,112430.0,0.02459364]
[1760149887866,1.02305627,112440.0,112430.0,0.02459364]
[1760149888067,1.45021112,112440.0,112430.0,0.02459364]
[1760149888369,1.6832786,112440.0,112430.0,0.02459364]
[1760149888670,1.25609182,112440.0,112430.0,0.02459364]
[1760149888873,0.91124479,112440.0,112430.0,0.48755814]
[1760149889063,0.89529006,112440.0,112430.0,0.88755814]
[1760149889568,0.11892216,112460.0,112430.0,0.88755814]
[1760149889569,0.10296743,112460.0,112450.0,0.0888287]
[1760149889770,0.07107233,112460.0,112450.0,0.9537487]
[1760149889971,1.14219126,112480.0,112450.0,0.9537487]
[1760149890171,0.3926951,112480.0,112460.0,0.3608]
[1760149890371,0.3926951,112480.0,112460.0,0.4808]
[1760149890571,0.40141754,112480.0,112460.0,0.5696192]
[1760149890975,0.49022324,112480.0,112460.0,0.4808]
[1760149891269,0.49022324,112480.0,112460.0,0.12]
[1760149891270,0.3608,112470.0,112460.0,0.12]
[1760149891466,0.41357754,112480.0,112460.0,0.12]
[1760149891665,0.40141754,112480.0,112460.0,0.13332]
[1760149892067,0.40141754,112480.0,112460.0,0.5829404]
[1760149892272,0.40141754,112480.0,112460.0,0.13332]
[1760149892664,0.56056596,112480.0,112460.0,0.13332]
[1760149892867,0.47175976,112480.0,112460.0,0.5829408]
[1760149893066,0.47175976,112480.0,112460.0,0.13332]
[1760149893270,0.47175976,112480.0,112470.0,0.01332]
[1760149893271,0.07906466,112480.0,112470.0,0.01332]
[1760149893473,0.75258669,112490.0,112480.0,0.01332]
[1760149893770,0.00882653,112490.0,112480.0,0.622125]
[1760149893967,0.3926114,112510.0,112490.0,0.01332]
[1760149894172,0.3608,112500.0,112490.0,0.11]
[1760149894375,0.4495892,112500.0,112490.0,0.11]
[1760149894574,0.8627892,112500.0,112490.0,0.11]
[1760149895470,1.58064672,112500.0,112490.0,0.11]
[1760149895677,1.58945454,112500.0,112490.0,0.11]
[1760149895975,1.7544659,112500.0,112490.0,0.11]
[1760149896177,0.8598653,112500.0,112490.0,0.11]
[1760149896472,1.22639,112500.0,112490.0,0.11]
[1760149896866,1.3151793,112500.0,112490.0,0.11]
[1760149897472,1.2208,112500.0,112490.0,0.11]
[1760149898280,1.22988792,112500.0,112490.0,0.11]
[1760149898579,1.31867722,112500.0,112490.0,0.11]
[1760149899169,1.45438084,112500.0,112490.0,0.11]
[1760149899366,1.36559154,112500.0,112490.0,0.11]
[1760149899581,2.06768207,112500.0,112490.0,0.11]
[1760149900277,1.60768207,112500.0,112490.0,0.11]
[1760149901281,2.0836207,112500.0,112490.0,0.01944241]
[1760149901473,0.088802,112490.0,112460.0,0.01332]
[1760149901779,0.3608,112480.0,112460.0,0.14332]
[1760149901979,0.3608,112480.0,112460.0,0.2321406]
[1760149903679,0.3608,112480.0,112460.0,0.5929406]
[1760149903882,0.3608,112480.0,112460.0,0.2321406]
[1760149904380,0.3608,112470.0,112460.0,0.13]
[1760149904778,0.3708,112470.0,112460.0,0.13]
[1760149904978,0.8728131,112470.0,112460.0,0.13]
[1760149905181,0.8628131,112470.0,112460.0,0.13]
[1760149906383,0.774,112470.0,112460.0,0.13]
[1760149906776,0.8628131,112470.0,112460.0,0.13]
[1760149907172,0.8628128,112470.0,112460.0,0.13]
[1760149907375,0.8628128,112470.0,112460.0,0.11235]
[1760149907582,0.8946242,112470.0,112460.0,0.09641]
[1760149907778,0.8946242,112470.0,112460.0,0.01594]
[1760149908174,0.00559,112460.0,112440.0,0.0888363]
[1760149908379,0.4628132,112470.0,112440.0,0.2321004]
[1760149908679,0.374,112470.0,112440.0,0.5929004]
[1760149908878,0.374,112470.0,112450.0,0.0888285]
[1760149909179,0.4047714,112480.0,112460.0,0.1020908]
[1760149909480,0.374,112470.0,112460.0,0.12]
[1760149909680,0.4628127,112470.0,112460.0,0.12]
[1760149910082,0.4946241,112470.0,112460.0,0.12]
[1760149911080,0.42080983,112480.0,112470.0,0.0888127]
[1760149911081,0.3926114,112480.0,112470.0,0.0888127]
[1760149911285,0.0318114,112480.0,112470.0,0.2214927]
[1760149911487,0.40864983,112490.0,112470.0,0.13268]
[1760149911488,0.3926114,112490.0,112470.0,0.13268]
[1760149911687,0.3926114,112490.0,112470.0,0.2214916]
[1760149912288,0.001,112480.0,112470.0,0.13268]
[1760149912681,0.4495993,112490.0,112470.0,0.13268]
[1760149912988,0.4621193,112490.0,112470.0,0.12]
[1760149913387,0.3608,112480.0,112470.0,0.12]
[1760149913889,0.3926114,112490.0,112470.0,0.2214927]
[1760149914082,0.3926114,112490.0,112470.0,0.2214885]
[1760149914588,0.3926114,112490.0,112480.0,0.0888048]
[1760149914789,0.0318114,112490.0,112480.0,0.2188048]
[1760149914982,0.3926114,112490.0,112480.0,0.2188048]
[1760149915290,0.3926114,112490.0,112480.0,0.13]
[1760149916990,0.0318114,112490.0,112480.0,0.14268]
[1760149917484,0.3926114,112490.0,112480.0,0.14268]
[1760149917885,0.4146814,112490.0,112480.0,0.14268]
[1760149918184,0.38287,112490.0,112480.0,0.14268]
[1760149918388,0.4146814,112490.0,112480.0,0.14268]
[1760149918688,0.4146814,112490.0,112480.0,0.1649]
[1760149919082,0.0538814,112490.0,112480.0,0.2537048]
[1760149919690,0.0318114,112490.0,112480.0,1.00345263]
[1760149919984,0.90076347,112500.0,112490.0,0.0349]
[1760149920184,1.22975207,112500.0,112490.0,0.1649]
[1760149920381,0.84688207,112500.0,112490.0,0.6536969]
[1760149920585,0.3926114,112510.0,112490.0,0.6536969]
[1760149920787,0.53430956,112510.0,112500.0,0.123689]
[1760149921088,0.52456816,112510.0,112500.0,0.1549]
[1760149921287,0.56889956,112510.0,112500.0,0.12]
[1760149922086,0.55737956,112510.0,112500.0,0.12]
[1760149922884,0.52556816,112510.0,112500.0,0.12]
[1760149923281,0.50349816,112510.0,112500.0,0.1549]